Cogmind - Beta 13 @@@ ROGUE MODE // 2024.04.12 @ 18:12:48 Player: Strawberry Result: Destroyed by D-53 Grenadier with Mini Grenade Launcher Performance ------------- Evolutions (0) 0 Regions Visited (2) 400 Robots Destroyed (12) 60 Value Destroyed (359) 359 Prototype IDs (0) 0 Alien Tech Used (0) 0 Bonus (25) 25 TOTAL SCORE: 844 Bonus ------- Follower Combat Kills 25 Cogmind --------- Core Integrity 0/250 Matter 300/300 Energy 120/125 System Corruption 0% Temperature Warm (110) Movement Walking (190) Ox1 Location -10/Mines Parts ------- > --- POWER (1) -------- Light Ion Engine > --- PROPULSION (2) --- Aluminum Leg > --- UTILITY (2) ------ Disposable Heat Sink Medium Storage Unit > --- WEAPON (2) ------- Particle Cannon > --- INVENTORY (10) --- Ion Engine Light Treads Aluminum Leg Aluminum Leg Large Battery (200) EM Pulse Gun Small Laser Particle Gun Beam Cannon Light Assault Rifle Peak State ------------ > --- POWER ------------ Light Ion Engine > --- PROPULSION ------- Aluminum Leg Flexi-carbon Leg > --- UTILITY ---------- Disposable Heat Sink Medium Storage Unit > --- WEAPON ----------- Particle Cannon Particle Cannon > --- INVENTORY -------- Ion Engine Light Treads Aluminum Leg Large Battery EM Pulse Gun EM Pulse Gun Small Laser Particle Gun Beam Cannon Light Assault Rifle [Rating: 15] Favorites ----------- Power Ion Engine Engine Ion Engine Power Core Light Nuclear Core Propulsion Light Treads Treads Light Treads Leg Aluminum Leg Utility Disposable Heat Sink Device Disposable Heat Sink Storage Medium Storage Unit Weapon Particle Cannon Energy Gun EM Pulse Gun Energy Cannon Particle Cannon Ballistic Gun Light Assault Rifle Launcher Grenade Launcher Build | -11 -10 -10 ------- Run | Yrd Mat Min Slots Evolved . | . . . Power . | . . . Propulsion . | . . . Utility . | . . . Weapon . | . . . Parts Attached 20 | 6 2 12 Power 4 | 1 . 3 Engine 3 | 1 . 2 Core 1 | . . 1 Reactor . | . . . Propulsion 8 | 2 . 6 Treads 2 | 2 . . Leg 6 | . . 6 Wheel . | . . . Hover . | . . . Flight . | . . . Utility 3 | 1 2 . Device 1 | . 1 . Storage 2 | 1 1 . Processor . | . . . Hackware . | . . . Protection . | . . . Artifact . | . . . Weapon 5 | 2 . 3 Energy Gun 1 | 1 . . Energy Cannon 2 | . . 2 Ballistic Gun 1 | 1 . . Ballistic Cannon . | . . . Launcher 1 | . . 1 Special Weapon . | . . . Impact Weapon . | . . . Slashing Weapon . | . . . Piercing Weapon . | . . . Special Melee Weapon . | . . . Unidentified Prototypes . | . . . Parts Lost 7 | . . 7 Power 2 | . . 2 Propulsion 3 | . . 3 Utility . | . . . Weapon 2 | . . 2 Highest Loss Streak 2 | . . 2 To Critical Strikes . | . . . Average Slot Usage (%) 96 | . 99 94 Engine 9 | . 14 8 Core 1 | . . 2 Treads 13 | . 28 7 Leg 14 | . . 19 Device 13 | . 13 14 Storage 14 | . 14 14 Energy Gun 6 | . 14 3 Energy Cannon 12 | . . 17 Ballistic Gun 8 | . 14 5 Naked Turns . | . . . Heaviest Build 23 | 13 19 23 Greatest Support 40 | 40 40 40 Greatest Overweight (x) 1 | 1 . 1 Average Overweight (x) . | . . . Largest Inventory Capacity 10 | 8 10 10 Average Capacity 9 | 7 9 10 Most Carried 10 | 6 10 10 Average Carried 8 | 2 8 9 Final Capacity 10 | 8 10 10 Final Carried 10 | 4 10 10 Class Distribution -------------------- 100% | Mutant Dominant Class ---------------- Mutant | -10/Materials Mutant | -10/Mines Resources | -11 -10 -10 ----------- Run | Yrd Mat Min Matter Collected 435 | 204 96 135 Remotely . | . . . Salvage Created 532 | . 202 330 Parts 27 | . 12 15 Haulers Intercepted 1 | . 1 . Recyclers Shooed 1 | . 1 . Parts Field Recycled . | . . . Retrieved Matter . | . . . Parts Self-Destructed . | . . . Prevented . | . . . Kills | -11 -10 -10 ------- Run | Yrd Mat Min Combat Hostiles Destroyed 19 | . 3 16 Guns 5 | . 3 2 Cannons 7 | . . 7 AOE 6 | . . 6 Classes Destroyed 5 | . 3 2 Hauler 1 | . 1 . Watcher 1 | . 1 . Swarmer 2 | . . 2 Grunt 8 | . 3 5 Assembled 9 | . . 9 Best Kill Streak 7 | . 3 7 Combat Bots Only 7 | . 2 7 Max Kills in Single Turn 3 | . 1 3 Gunslinging . | . . . Exploded 3 | . . 3 Melee . | . . . Uniques/NPCs Destroyed . | . . . Combat | -11 -10 -10 -------- Run | Yrd Mat Min Hostile Shots Fired 117 | . 24 93 Missed 31 | . 2 29 Damage Taken 1257 | . 238 1019 Core 262 | . 42 220 Absorbed by Shields . | . . . Core Remaining (%) 100 | 100 . . Volleys Fired 52 | . 20 32 Largest 2 | . 2 2 Hottest 136 | . 60 136 Shots Fired 103 | . 40 63 Gun 60 | . 40 20 Cannon 40 | . . 40 Launcher 3 | . . 3 Special . | . . . Kinetic 35 | . 20 15 Thermal 40 | . . 40 Explosive 3 | . . 3 Electromagnetic 25 | . 20 5 Robot Hit Streak 11 | . 11 9 Robot Miss Streak 3 | . 3 3 Penetration Max . | . . . Secondary Targets 1 | . 1 . Max Gunslinging Chain 1 | . 1 . Shots Hit Robots 66 | . 29 37 Core Hits 44 | . 9 35 Critical Kills 1 | . . 1 Critical Parts Destroyed . | . . . Critical Strikes 1 | . . 1 Meltdown 1 | . . 1 Melee Attacks . | . . . Impact . | . . . Slashing . | . . . Piercing . | . . . Sneak Attacks . | . . . Combat Hostiles . | . . . Follow-up Attacks . | . . . Damage Inflicted 1528 | . 379 1149 Guns 432 | . 332 100 Cannons 552 | . . 552 Explosions 540 | . 47 493 Melee . | . . . Ramming 4 | . . 4 Kinetic 199 | . 109 90 Thermal 599 | . 47 552 Explosive 493 | . . 493 Electromagnetic 233 | . 223 10 Impact . | . . . Slashing . | . . . Piercing . | . . . Highest Corruption . | . . . Average Corruption . | . . . Corruption Purged . | . . . Corruption Blocked . | . . . Overload Shots . | . . . Overflow Damage 22 | . 17 5 Projectiles . | . . . Explosions 22 | . 17 5 Melee . | . . . Knockbacks . | . . . Impact . | . . . Kinetic . | . . . Secondary . | . . . Self-Inflicted Damage . | . . . Shots . | . . . Rammed . | . . . Targets Rammed 1 | . . 1 Kicked 1 | . . 1 Crushed . | . . . Highest Temperature 196 | . 136 196 Average Temperature 77 | . 45 91 Received Heat Transfer 332 | . 132 200 Siege Activations . | . . . Robots Corrupted . | . . . Combat Hostiles . | . . . Parts Fried 1 | . 1 . Impact Corruptions . | . . . Robots Melted 1 | . . 1 Combat Hostiles 1 | . . 1 Parts Melted 2 | . 1 1 Heat Transferred 1049 | . 50 999 Parts Sabotaged . | . . . Parts Stolen . | . . . Parts Stripped . | . . . Power Chain Reactions 1 | . 1 . Alert | -11 -10 -10 ------- Run | Yrd Mat Min Peak Influence 164 | . 124 164 Initial 48 | . . 48 Average 65 | . 61 73 Maximum Alert Level . | . . . Low Security (%) 100 | 100 100 100 Level 1 . | . . . Level 2 . | . . . Level 3 . | . . . Level 4 . | . . . Level 5 . | . . . High Security . | . . . Max Security . | . . . Squads Dispatched 1 | . 1 . Investigation . | . . . Extermination . | . . . Reinforcement 1 | . 1 . Assault . | . . . Garrison . | . . . Intercept . | . . . Searches Triggered . | . . . Construction Impeded . | . . . Haulers Reinforced . | . . . Active Scanning Responses . | . . . Cargo Convoy Interrupts . | . . . Stealth | -11 -10 -10 --------- Run | Yrd Mat Min Distress Signals . | . . . Communications Jammed . | . . . Distress Signals . | . . . Times Spotted 37 | . 7 30 Peak Tracking Total 15 | . 3 15 Tactical Retreats 3 | . . 3 Traps | -11 -10 -10 ------- Run | Yrd Mat Min Traps Triggered . | . . . Indirectly . | . . . Trap Hack Attempts . | . . . Triggered . | . . . Disarmed . | . . . Reprogrammed . | . . . Reused . | . . . Traps Extracted . | . . . Installed . | . . . Triggered . | . . . Machines | -11 -10 -10 ---------- Run | Yrd Mat Min Machines Disabled 1 | . . 1 Max in Single Turn 1 | . . 1 Machines Repaired . | . . . Machines Dismantled . | . . . Machines Sabotaged . | . . . Overloaded Fab Kills . | . . . Hacking | -11 -10 -10 --------- Run | Yrd Mat Min Machines Accessed 3 | . 3 . Terminals 2 | . 2 . Fabricators . | . . . Repair Stations . | . . . Recycling Units 1 | . 1 . Scanalyzers . | . . . Garrison Access . | . . . Total Hacks 5 | . 5 . Successful 3 | . 3 . Failed 2 | . 2 . Catastrophic . | . . . Database Lockouts . | . . . Manual . | . . . Terminals 4 | . 4 . Fabricators . | . . . Repair Stations . | . . . Recycling Units 1 | . 1 . Scanalyzers . | . . . Garrison Access . | . . . Terminal Hacks 2 | . 2 . Record 1 | . 1 . Hauler Manifests 1 | . 1 . Fabricator Hacks . | . . . Repair Station Hacks . | . . . Recycling Unit Hacks 1 | . 1 . Report Inventory 1 | . 1 . Scanalyzer . | . . . Garrison Access Hacks . | . . . Unauthorized Hacks . | . . . Terminals . | . . . Fabricators . | . . . Repair Stations . | . . . Recycling Units . | . . . Scanalyzers . | . . . Garrison Access . | . . . Data Cores Recovered . | . . . Used . | . . . Hacking Detections 1 | . 1 . Full Trace Events . | . . . Feedback Events . | . . . Feedback Blocked . | . . . Robot Schematics Acquired . | . . . Robots Built . | . . . Authchips . | . . . Time . | . . . Total Robot Build Rating . | . . . Part Schematics Acquired . | . . . Parts Built . | . . . Authchips . | . . . Time . | . . . Total Part Build Rating . | . . . Parts Repaired . | . . . Time . | . . . Parts Recycled . | . . . Recycled Matter . | . . . Retrieved Matter . | . . . Retrieved Components . | . . . Parts Scanalyzed . | . . . Part Schematics Acquired . | . . . Parts Damaged . | . . . Bothacking | -11 -10 -10 ------------ Run | Yrd Mat Min Used RIF Installer . | . . . Robots Hacked . | . . . Non-combat . | . . . Combat . | . . . Robot Hacks Applied . | . . . Relay Couplers Released . | . . . Fabnet Peak Effective % . | . . . Robots Rewired . | . . . Allies Hacked . | . . . Hacks Repelled . | . . . Allies | -11 -10 -10 -------- Run | Yrd Mat Min Total Allies 3 | . . 3 Largest Group 3 | . . 3 Highest-Rated Group 40 | . . 40 Highest-Rated Ally 16 | . . 16 Total Orders . | . . . Ally Attacks 7 | . . 7 Total Damage 83 | . . 83 Kills 1 | . . 1 Allies Corrupted . | . . . Allies Melted 1 | . . 1 Intel | -11 -10 -10 ------- Run | Yrd Mat Min Robot Analysis Total . | . . . Derelict Logs Recovered 1 | . . 1 Drone Launches . | . . . Drone Recoveries . | . . . Exploration | -11 -10 -10 ------------- Run | Yrd Mat Min Turns Passed 1341 | 88 361 892 Spaces Moved 716 | 50 174 492 Core 9 | 9 . . Treads 338 | 41 174 123 Legs 369 | . . 369 Wheels . | . . . Hover . | . . . Flight . | . . . Fastest Speed 50 | 50 160 120 Average Speed 153 | 146 160 151 Slowest Speed 190 | 160 160 190 Overloaded Moves . | . . . Propulsion Burnouts . | . . . Robots Hopped . | . . . Cave-ins Triggered . | . . . Exploration Rate (%) 37 | 4 30 79 Regions Visited 2 Branch Regions 1 Pre-discovered Areas . | . . . Known Exits Taken . | . . . Unknown Exits Taken 2 | 1 1 . Scrap Searched 1 | . . 1 Spaces Dug . | . . . Terrain Destroyed 20 | . 3 17 Melee . | . . . Projectile 1 | . . 1 AOE 19 | . 3 16 Terrain Rammed . | . . . Walls Destroyed . | . . . Machines Disabled . | . . . Actions | -11 -10 -10 --------- Run | Yrd Mat Min Total 864 | 65 222 577 Wait 38 | . 12 26 Move 714 | 49 173 492 Hop . | . . . Pick Up 30 | 10 11 9 Fast Attach . | . . . Attach 13 | 6 1 6 Detach 1 | . . 1 Swap 7 | . 1 6 Drop 8 | . 4 4 Fire 52 | . 20 32 Melee . | . . . Ram . | . . . Kick 1 | . . 1 Crush . | . . . Escape Stasis . | . . . Rewire . | . . . Trap . | . . . Miscellaneous . | . . . Route ------- -11/Scrapyard -10/Materials -10/Mines History --------- Turn | Location | Event 2 | -11/Scrapyard | Met Revision 17 5 | -11/Scrapyard | Discovered new exit (range 15) 89 | -11/Scrapyard | Entered Materials 308 | -10/Materials | Build established: Mutant 399 | -10/Materials | Discovered new exit (range 8) 450 | -10/Materials | Entered Mines 471 | -10/Mines | Met a Derelict bent on vengeance 603 | -10/Mines | Assisted by bots powering up and referring to "LRC-V3" 703 | -10/Mines | Lost 3 allies 800 | -10/Mines | Assembled infested the area 805 | -10/Mines | Assisted by a Guerilla fighting off Assembled 832 | -10/Mines | Core integrity fell below 50% 841 | -10/Mines | Learned Materials emergency access door positions 847 | -10/Mines | Destroyed 7 combat bots 1335 | -10/Mines | Core integrity fell below 20% 1342 | -10/Mines | Destroyed by D-53 Grenadier with Mini Grenade Launcher Last Messages --------------- Acquired Ion Engine. Acquired Sml. Laser. Acquired Aluminum Leg. Dropped Aluminum Leg. Acquired Particle Gun. Acquired 4 matter. Acquired 3 matter. Acquired 2 matter. Acquired Flexi-carbon Leg. Acquired 11 matter. Dropped EM Pulse Gun. Acquired Aluminum Leg. Dropped Aluminum Leg. Acquired 10 matter. Acquired Aluminum Leg. Particle Cannon destroyed. U-05 Engineer lays Concrete. Flexi-carbon Leg destroyed. U-05 Engineer destroyed. K-01 Serf collects debris. Map ----- +----------------------------------------------------+ | ???????????????????????# """ """ #?????????# | | ???????????????????????# """ """ #?????##??# #?# | | ???????????????????????# """ """ #????###### #?# | | ???????????????????????# #???## ## ### | | ???????????????????????#### ######### # ## | | ??????????????????????????# ##### | | ??????????????????????????# | | ??????????????????????????# ## ##### | | ??????????????????????????#### ### #### ## ## | | ?????????????????????????????# #?###?## # ??? | | ??????#####??????????????????# #?????## ##??? | | ?????## ##?????????????????# #####?## ##??? | | ????## ##########????????# ######## ##??? | | ????# #???????## ### ##??? | | ##### ####### #?###???# ##??? | | # ####### #?# ##??# #???? | | # ## ### ##?## %### ##???? | | # # ## ##!# ##?# #?##### ##????? | | ##### ## ##=# = ### #?##### ##?????? | | ????### #### ##!% d d%[ ## #?????# #??????? | | ??????###### ##=## ####### ######## | | ?????????## # ## [ | | ??????#### ## # ################# | | ?????## ## r ##??????????????# | | ?????# ## r #??????????????# | | ?????## ### @ ##??????????????# | | ??????##### ##?# k ##???????????????# | | ??????????# ####??## ! ##????????????????# | | ??????????# ???????# % ########???????????# | | ??????????# ???????## ### ##??????????# | | ??????????# ????????# #??????????# | | ?????????? ?####???# #??????????# | | ??????????# ?? ??## #?????###### | | ??????????#????# ???## k #?????# | | ???????????????# ##??## ## ##?????# #### | | ???????????????# ##?### ### ###??????# #??? | | ???????????????# ###?# #?####????????# #??? | | ???????????????## ### #?????????????# #??? | | ????????????#### #?????????????# #### | | ????????????# ## #?????????????# ## | | ????? %### ??????????## | | ???????##### ## #?# ???????# | | ???????????## ##?# #?######## #????## | | ????????????## ????# #???????????#????# ## | | ?????????????##?????# #????????????????## #### | | ????????????????????# #?????????????????####??# | | ????????????????????# #???????????????????????? | | ??????????????####### #???????????????????????? | | ??????????????# #???????????????????????? | | ??????????????# ########???????????????????????? | +----------------------------------------------------+ Best States ------------- Heat Dissipation 25 Coolant Potential 50 Energy Generation 14 Energy Capacity 250 Matter Stores 300 Matter Capacity 300 Sight Range 16 Terrain Scan Density 10 Evasion (%) 55 Recoil Reduction 2 Item Schematics ----------------- None Robot Schematics ------------------ None Fabricated ------------ Nothing Alien Tech Used ----------------- None Achievements -------------- None Challenges ------------ None Game ------ Seed DerelictThermicBattery Manual? 0 Play Time 00:18:11 Cumulative 4.8 hours Start 2024.04.12 @ 13:29:57 End 2024.04.12 @ 18:12:48 Sessions 3 Manual Loads 0 Difficulty Rogue Special Mode None Game No. 5 Rogue 5 Adventurer 0 Explorer 0 Win Type - Total 0 Types 0/0/0/0/0/0/0/0/0 Lore% 2 Gallery% 8 Achievement% 8 Wizard Run 0 Options --------- Layout 1 ASCII 0 Keyboard 0 Movement Mouse Keybinds 0 Fullscreen 2 Font 24/Smallcaps Map View 50x35 Zoom Use 0% Tactical HUD 0 Map Filters NONE Filters NONE Steam 0 RUN: 1d6d1be0-896a-4d05-b071-71ff550c6dd6